fUST/lending_fUST_20250301
["ID","MTS","AMOUNT","RATE_DAILY","PERIOD"]
[354921972,1740817868125,-500.0,0.00033972,2]
[354921973,1740817868135,-462.571216,0.00033972,14]
[354921974,1740817868144,-500.0,0.00033972,2]
[354921975,1740817868154,-500.0,0.00033972,2]
[354921976,1740817868164,-462.571216,0.00033972,14]
[354921977,1740817868176,-1058.89,0.00033972,2]
[354921978,1740817868186,-500.0,0.00033972,2]
[354921979,1740817868197,-739.6,0.00033972,2]
[354921980,1740817868208,-739.45,0.00033972,2]
[354921981,1740817868218,-660.48,0.00033972,2]
[354921982,1740817868227,-500.0,0.00033972,2]
[354921983,1740817868237,-291.193328,0.00033972,14]
[354921984,1740817868246,-500.0,0.00033972,2]
[354921985,1740817868256,-500.0,0.00033972,2]
[354921986,1740817868266,-291.193328,0.00033972,14]
[354921987,1740817868275,-500.0,0.00033972,2]
[354921988,1740817868285,-500.0,0.00033972,2]
[354921989,1740817868295,-2207.39,0.00033972,2]
[354921990,1740817868305,-1862.06,0.00033972,2]
[354921991,1740817868314,-500.0,0.00033972,2]
[354921992,1740817868323,-500.0,0.00033972,2]
[354921993,1740817868333,-500.0,0.00033972,2]
[354921994,1740817868343,-259.26646607,0.00033972,2]
[354921995,1740817868352,-8668.19,0.00033972,2]
[354921996,1740817868361,-500.0,0.00033972,2]
[354921997,1740817868371,-500.0,0.00033972,2]
[354921998,1740817868381,-1358.04,0.00033972,2]
[354921999,1740817868391,-833.84,0.00033972,2]
[354922000,1740817868401,-1751.3,0.00033972,2]
[354922001,1740817868411,-500.0,0.00033972,2]
[354922002,1740817868420,-15925.0,0.00033972,2]
[354922003,1740817868430,-500.0,0.00033972,2]
[354922004,1740817868440,-1797.34,0.00033972,2]
[354922005,1740817868449,-12771.61,0.00033972,2]
[354922006,1740817868459,-744.442474,0.00033972,14]
[354922007,1740817868468,-231.467165,0.00033972,14]
[354922008,1740817868477,-500.0,0.00033972,2]
[354922009,1740817868487,-176.47289892,0.00033972,2]
[354922010,1740817868496,-744.442474,0.00033972,14]
[354922011,1740817868506,-1755.88,0.00033972,2]
[354922012,1740817868515,-671.16,0.00033972,2]
[354922013,1740817868525,-231.467165,0.00033972,14]
[354922014,1740817868534,-500.0,0.00033972,2]
[354922015,1740817868544,-1262.21,0.00033972,2]
[354922016,1740817868553,-476.15689577,0.00033972,2]
[354922017,1740817868563,-500.0,0.00033972,2]
[354922018,1740817868573,-588.67118111,0.00033972,2]
[354922019,1740817868582,-2981.03,0.00033972,2]
[354922020,1740817868592,-2001.64,0.00033972,2]
[354922021,1740817868601,-1602.3,0.00033972,2]
[354922022,1740817868610,-2113.48,0.00033972,2]
[354922023,1740817868619,-930.6,0.00033972,2]
[354922024,1740817868629,-600.93,0.00033972,2]
[354922025,1740817868638,-500.0,0.00033972,2]
[354922026,1740817868647,-1051.04,0.00033972,2]
[354922027,1740817868657,-500.0,0.00033972,2]
[354922028,1740817868667,-500.0,0.00033972,2]
[354922029,1740817868677,-2402.507878,0.00033972,14]
[354922030,1740817868687,-500.0,0.00033972,2]
[354922031,1740817868698,-500.0,0.00033972,2]
[354922032,1740817868708,-500.0,0.00033972,2]
[354922033,1740817868718,-2402.507878,0.00033972,14]
[354922034,1740817868727,-1404.477227,0.00033972,14]
[354922035,1740817868737,-202836.62,0.00033972,2]
[354922036,1740817868747,-1404.477227,0.00033972,14]
[354922037,1740817868759,-1814.82,0.00033972,2]
[354922038,1740817868768,-1404.477227,0.00033972,14]
[354922039,1740817868779,-1404.477227,0.00033972,14]
[354922040,1740817868789,-500.0,0.00033972,2]
[354922041,1740817868798,-718.7,0.00033972,2]
[354922042,1740817868808,-3266.74,0.00033972,2]
[354922043,1740817868818,-1465.12,0.00033972,2]
[354922044,1740817868827,-211.055466,0.00033972,14]
[354922045,1740817868838,-211.055466,0.00033972,14]
[354922046,1740817868847,-2402.48,0.00033972,2]
[354922047,1740817868857,-500.0,0.00033972,2]
[354922048,1740817868867,-211.055466,0.00033972,14]
[354922049,1740817868877,-211.055466,0.00033972,14]
[354922050,1740817868886,-588.26,0.00033972,2]
[354922051,1740817868896,-500.0,0.00033972,2]
[354922052,1740817868906,-500.0,0.00033972,2]
[354922053,1740817868915,-1991.31,0.00033972,2]
[354922054,1740817868926,-500.0,0.00033972,2]
[354922055,1740817868935,-4102.92,0.00033972,2]
[354922056,1740817868950,-1225.17,0.00033972,2]
[354922057,1740817868960,-1594.25,0.00033972,2]
[354922058,1740817868970,-514.0,0.00033972,2]
[354922059,1740817868981,-695.98,0.00033972,2]
[354922060,1740817868990,-686.87,0.00033972,2]
[354922061,1740817869000,-500.0,0.00033972,2]
[354922062,1740817869011,-500.0,0.00033972,2]
[354922063,1740817869023,-2077.92,0.00033972,2]
[354922064,1740817869033,-500.0,0.00033972,2]
[354922065,1740817869043,-590.158248,0.00033972,14]
[354922066,1740817869053,-984.35,0.00033972,2]
[354922067,1740817869063,-500.0,0.00033972,2]
[354922068,1740817869073,-590.158248,0.00033972,14]
[354922069,1740817869083,-7070.88,0.00033972,2]
[354922070,1740817869093,-1244.17,0.00033972,2]
[354922071,1740817869103,-804.55,0.00033972,2]
[354922072,1740817869113,-2216.42,0.00033972,2]
[354922073,1740817869123,-1268.75,0.00033972,2]
[354922074,1740817869132,-500.0,0.00033972,2]
[354922075,1740817869142,-500.0,0.00033972,2]
[354922076,1740817869152,-639.84732129,0.00033972,2]
[354922077,1740817869163,-500.0,0.00033972,2]
[354922078,1740817869172,-500.0,0.00033972,2]
[354922079,1740817869183,-531.97,0.00033972,2]
[354922080,1740817869193,-604.24,0.00033972,2]
[354922081,1740817869203,-553.58,0.00033972,2]
[354922082,1740817869212,-1466.88,0.00033972,2]
[354922083,1740817869221,-234.515658,0.00033972,14]
[354922084,1740817869231,-2023.28,0.00033972,2]
[354922085,1740817869241,-1302.88,0.00033972,2]
[354922086,1740817869250,-583.39,0.00033972,2]
[354922087,1740817869260,-234.515658,0.00033972,14]
[354922088,1740817869270,-12171.81,0.00033972,2]
[354922089,1740817869279,-785.36,0.00033972,2]
[354922090,1740817869289,-948.37,0.00033972,2]
[354922091,1740817869298,-500.0,0.00033972,2]
[354922092,1740817869307,-151.0,0.00033972,14]
[354922093,1740817869317,-500.0,0.00033972,2]
[354922094,1740817869327,-905.46,0.00033972,2]
[354922095,1740817869336,-556.88,0.00033972,2]
[354922096,1740817869346,-151.0,0.00033972,14]
[354922097,1740817869356,-548.05,0.00033972,2]
[354922098,1740817869366,-500.0,0.00033972,2]
[354922099,1740817869375,-500.0,0.00033972,2]
[354922100,1740817869385,-500.0,0.00033972,2]
[354922101,1740817869396,-634.71,0.00033972,2]
[354922102,1740817869405,-1396.74,0.00033972,2]
[354922103,1740817869415,-500.0,0.00033972,2]
[354922104,1740817869425,-3193.13,0.00033972,2]
[354922105,1740817869435,-1689.31,0.00033972,2]
[354922106,1740817869445,-500.0,0.00033972,2]
[354922107,1740817869454,-746.67,0.00033972,2]
[354922108,1740817869465,-500.0,0.00033972,2]
[354922109,1740817869475,-1546.75,0.00033972,2]
[354922110,1740817869485,-500.0,0.00033972,2]
[354922111,1740817869495,-1264.27,0.00033972,2]
[354922112,1740817869505,-500.0,0.00033972,2]
[354922113,1740817869515,-1095.66,0.00033972,2]
[354922114,1740817869525,-463.49,0.00033972,2]
[354922115,1740817869535,-3370.93,0.00033972,2]
[354922116,1740817869545,-1301.98,0.00033972,2]
[354922117,1740817869554,-500.0,0.00033972,2]
[354922118,1740817869564,-1705.641074,0.00033972,14]
[354922119,1740817869574,-951.34,0.00033972,2]
[354922120,1740817869584,-1204.25,0.00033972,5]
[354922121,1740817869596,-1740.8,0.00033972,2]
[354922122,1740817869605,-500.0,0.00033972,2]
[354922123,1740817869615,-1705.641074,0.00033972,14]
[354922124,1740817869626,-500.0,0.00033972,2]
[354922125,1740817869636,-500.0,0.00033972,2]
[354922126,1740817869646,-1443.22,0.00033972,2]
[354922127,1740817869656,-767.54,0.00033972,2]
[354922128,1740817869666,-500.0,0.00033972,2]
[354922129,1740817869677,-954.47,0.00033972,2]
[354922130,1740817869687,-6662.49,0.00033972,2]
[354922131,1740817869696,-40921.83,0.00033972,2]
[354922132,1740817869706,-547.0,0.00033972,2]
[354922133,1740817869716,-1480.22,0.00033972,2]
[354922134,1740817869727,-7312.56,0.00033972,2]
[354922135,1740817869736,-500.0,0.00033972,2]
[354922136,1740817869746,-500.0,0.00033972,2]
[354922137,1740817869756,-2133.08,0.00033972,2]
[354922138,1740817869766,-500.0,0.00033972,2]
[354922139,1740817869775,-2413.06,0.00033972,2]
[354922140,1740817869786,-500.0,0.00033972,2]
[354922141,1740817869795,-500.0,0.00033972,2]
[354922142,1740817869806,-1000.0,0.00033972,28]
[354922143,1740817869816,-1000.0,0.00033972,28]
[354922144,1740817869825,-1000.0,0.00033972,28]
[354922145,1740817869835,-1000.0,0.00033972,28]
[354922146,1740817869845,-1358.58,0.00033972,2]
[354922147,1740817869855,-1000.0,0.00033972,28]
[354922148,1740817869865,-1000.0,0.00033972,28]
[354922149,1740817869875,-745.33,0.00033972,2]
[354922150,1740817869885,-1069.67,0.00033972,2]
[354922151,1740817869895,-1000.0,0.00033972,28]
[354922152,1740817869904,-1000.0,0.00033972,28]
[354922153,1740817869915,-500.0,0.00033972,2]
[354922154,1740817869925,-1000.0,0.00033972,28]
[354922155,1740817869939,-1000.0,0.00033972,28]
[354922156,1740817869950,-1000.0,0.00033972,28]
[354922157,1740817869959,-1000.0,0.00033972,28]
[354922158,1740817869969,-1000.0,0.00033972,28]
[354922159,1740817869979,-500.0,0.00033972,2]
[354922160,1740817869989,-1000.0,0.00033972,28]
[354922161,1740817869999,-1000.0,0.00033972,28]
[354922162,1740817870009,-1000.0,0.00033972,28]
[354922163,1740817870019,-1000.0,0.00033972,28]
[354922164,1740817870030,-1000.0,0.00033972,28]
[354922165,1740817870040,-1000.0,0.00033972,28]
[354922166,1740817870051,-1000.0,0.00033972,28]
[354922167,1740817870062,-500.0,0.00033972,2]
[354922168,1740817870073,-681.05,0.00033972,2]
[354922169,1740817870084,-1000.0,0.00033972,28]
[354922170,1740817870094,-1000.0,0.00033972,28]
[354922171,1740817870106,-1000.0,0.00033972,28]
[354922172,1740817870118,-1000.0,0.00033972,28]
[354922173,1740817870129,-1000.0,0.00033972,28]
[354922174,1740817870140,-1931.81,0.00033972,2]
[354922175,1740817870151,-1000.0,0.00033972,28]
[354922176,1740817870162,-1000.0,0.00033972,28]
[354922177,1740817870173,-318.191088,0.00033972,14]
[354922178,1740817870185,-1000.0,0.00033972,28]
[354922179,1740817870195,-1000.0,0.00033972,28]
[354922180,1740817870206,-1000.0,0.00033972,28]
[354922181,1740817870216,-1220.43,0.00033972,2]
[354922182,1740817870226,-1000.0,0.00033972,28]
[354922183,1740817870235,-500.0,0.00033972,2]
[354922184,1740817870245,-1000.0,0.00033972,28]
[354922185,1740817870256,-1000.0,0.00033972,28]
[354922186,1740817870266,-1000.0,0.00033972,28]
[354922187,1740817870276,-4099.73,0.00033972,2]
[354922188,1740817870287,-1000.0,0.00033972,28]
[354922189,1740817870297,-1000.0,0.00033972,28]
[354922190,1740817870307,-318.191088,0.00033972,14]
[354922191,1740817870317,-518.77,0.00033972,120]
[354922192,1740817870327,-1000.0,0.00033972,28]
[354922193,1740817870338,-830.44,0.00033972,2]
[354922194,1740817870348,-1000.0,0.00033972,28]
[354922195,1740817870359,-1000.0,0.00033972,28]
[354922196,1740817870369,-1000.0,0.00033972,28]
[354922197,1740817870379,-1000.0,0.00033972,28]
[354922198,1740817870389,-1000.0,0.00033972,28]
[354922199,1740817870399,-1000.0,0.00033972,28]
[354922200,1740817870410,-500.0,0.00033972,2]
[354922201,1740817870419,-1000.0,0.00033972,28]
[354922202,1740817870431,-1000.0,0.00033972,28]
[354922203,1740817870441,-1000.0,0.00033972,28]
[354922204,1740817870451,-1000.0,0.00033972,28]
[354922205,1740817870462,-2786.98,0.00033972,2]
[354922206,1740817870472,-1000.0,0.00033972,28]
[354922207,1740817870482,-1000.0,0.00033972,28]
[354922208,1740817870492,-500.0,0.00033972,2]
[354922209,1740817870502,-500.0,0.00033972,2]
[354922210,1740817870512,-500.0,0.00033972,2]
[354922211,1740817870522,-1000.0,0.00033972,28]
[354922212,1740817870534,-1000.0,0.00033972,28]
[354922213,1740817870544,-286.90586524,0.00033972,2]
[354922214,1740817870555,-1000.0,0.00033972,28]
[354922215,1740817870565,-1000.0,0.00033972,28]
[354922216,1740817870574,-1000.0,0.00033972,28]
[354922217,1740817870584,-1000.0,0.00033972,28]
[354922218,1740817870595,-1528.64,0.00033972,2]
[354922219,1740817870606,-500.0,0.00033972,2]
[354922220,1740817870616,-1000.0,0.00033972,28]
[354922221,1740817870626,-839.51479843,0.00033972,28]
[354922222,1740817872112,-1076.56,0.00032876,2]
[354922223,1740817872121,-987.35,0.00032876,2]
[354922224,1740817872130,-494.49,0.00032876,2]
[354922225,1740817872612,-5.51,0.00032876,2]
[354922226,1740817872623,-500.0,0.00032876,2]
[354922227,1740817872632,-500.0,0.00032876,2]
[354922228,1740817872642,-500.0,0.00032876,2]
[354922229,1740817872652,-500.0,0.00032876,2]
[354922230,1740817872662,-500.0,0.00032876,2]
[354922231,1740817872671,-500.0,0.00032876,2]
[354922232,1740817872680,-500.0,0.00032876,2]
[354922233,1740817872690,-500.0,0.00032876,2]
[354922234,1740817872699,-500.0,0.00032876,2]
[354922235,1740817872709,-506.4195925,0.00032876,2]
[354922236,1740817872718,-500.0,0.00032876,2]
[354922237,1740817872727,-500.0,0.00032876,2]
[354922238,1740817872737,-1201.98,0.00032876,2]
[354922239,1740817872746,-502.3335248,0.00032876,2]
[354922240,1740817872755,-500.0,0.00032876,2]
[354922241,1740817872765,-304.8568827,0.00032876,2]
[354922242,1740817872799,-195.1431173,0.00032876,2]
[354922243,1740817872808,-500.0,0.00032876,2]
[354922244,1740817872817,-340.55587189,0.00032876,2]
[354922245,1740817872827,-500.0,0.00032876,2]
[354922246,1740817872837,-1076.56,0.0003315,2]
[354922247,1740817872847,-500.0,0.0003315,2]
[354922248,1740817872857,-500.0,0.0003315,2]
[354922249,1740817872867,-987.35,0.0003315,2]
[354922250,1740817872877,-133.95450606,0.0003315,2]
[354922251,1740817878281,964.16931298,0.000149,2]
[354922252,1740817881648,355.1928882,0.00031507,30]
[354922253,1740817881764,355.1928882,0.00031863,30]
[354922254,1740817881894,313.87255635,0.00032192,30]
[354922255,1740817881917,41.32033185,0.00032192,30]
[354922256,1740817882005,355.1928882,0.00032548,30]
[354922257,1740817887630,1495.81500634,0.00031872,2]
[354922258,1740817907140,211.20769769,0.00030137,2]
[354922259,1740817915511,205.6015918,0.00031754,64]
[354922260,1740817943969,252.1923477,0.00031,10]
[354922261,1740817948684,850.64921958,0.00031,10]
[354922262,1740818170785,250.000001,0.000297,30]
[354922263,1740818638870,1000.0,0.00028,7]
[354922264,1740818837133,-1075.79214762,0.000289,2]
[354922265,1740818837159,-138.32715763,0.00030065,2]
[354922266,1740818845210,-48.84741077,0.00030065,2]
[354922267,1740818845234,-9296.58965,0.00030634,2]
[354922268,1740818845260,-686.081744,0.00030634,2]
[354922269,1740818845283,-1352.76147852,0.00031076,2]
[354922282,1740818949127,-2941.24355816,0.00030522,40]
[354922285,1740818955556,-2448.27091194,0.00030522,40]
[354922286,1740818955580,-400.0,0.00031075,2]
[354922287,1740818955602,-23547.23852148,0.00031076,2]
[354922288,1740818955624,-254.3256035,0.00031474,2]
[354922289,1740818955646,-389.63583494,0.00031507,30]
[354922290,1740818955668,-250.0,0.00031659,2]
[354922291,1740818955690,-250.0,0.000317,30]
[354922292,1740818955712,-389.63583494,0.00031863,30]
[354922293,1740818955734,-260.98744795,0.00031877,2]
[354922294,1740818955757,-420.07534849,0.000319,6]
[354922295,1740818955780,-500.0,0.00031975,2]
[354922296,1740818955803,-500.0,0.00031975,2]
[354922297,1740818955823,-500.0,0.00031975,2]
[354922298,1740818955846,-500.0,0.00031975,2]
[354922299,1740818955868,-500.0,0.00031975,2]
[354922300,1740818955891,-500.0,0.00031975,2]
[354922301,1740818955914,-500.0,0.00031975,2]
[354922302,1740818955936,-500.0,0.00031975,2]
[354922303,1740818955959,-500.0,0.00031975,2]
[354922304,1740818955982,-500.0,0.00031975,2]
[354922305,1740818956004,-500.0,0.00031975,2]
[354922306,1740818956026,-500.0,0.00031975,2]
[354922307,1740818956048,-500.0,0.00031975,2]
[354922308,1740818956072,-500.0,0.00031975,2]
[354922309,1740818956093,-500.0,0.00031975,2]
[354922310,1740818956116,-500.0,0.00031975,2]
[354922311,1740818956138,-500.0,0.00031975,2]
[354922312,1740818956161,-500.0,0.00031975,2]
[354922313,1740818956184,-500.0,0.00031975,2]
[354922314,1740818956206,-500.0,0.00031975,2]
[354922315,1740818956229,-500.0,0.00031975,2]
[354922316,1740818956252,-620.0,0.00031975,2]
[354922317,1740818956277,-500.0,0.00031975,2]
[354922318,1740818956299,-300.0,0.00031975,2]
[354922319,1740818956323,-565.20195625,0.00031975,2]
[354922320,1740818956345,-500.0,0.00031975,2]
[354922321,1740818956371,-500.0,0.00031975,2]
[354922322,1740818956396,-500.0,0.00031975,2]
[354922323,1740818956419,-500.0,0.00031975,2]
[354922324,1740818956442,-500.0,0.00031975,2]
[354922325,1740818956465,-500.0,0.00031975,2]
[354922326,1740818956489,-500.0,0.00031975,2]
[354922327,1740818956512,-500.0,0.00031975,2]
[354922328,1740818956537,-500.0,0.00031975,2]
[354922329,1740818956561,-383.04372732,0.00031975,2]
[354922330,1740818957087,-116.95627268,0.00031975,2]
[354922331,1740818957111,-331.70785162,0.00031975,2]
[354922332,1740818957133,-500.0,0.00031975,2]
[354922333,1740818957156,-500.0,0.00031975,2]
[354922334,1740818957178,-500.0,0.00031975,2]
[354922335,1740818957203,-500.0,0.00031975,2]
[354922336,1740818957227,-500.0,0.00031975,2]
[354922337,1740818957249,-500.0,0.00031975,2]
[354922338,1740818957272,-500.0,0.00031975,2]
[354922339,1740818957299,-500.0,0.00031975,2]
[354922340,1740818957322,-419.7032313,0.00031975,2]
[354922341,1740818957344,-500.0,0.00031975,2]
[354922342,1740818957367,-500.0,0.00031975,2]
[354922343,1740818957389,-500.0,0.00031975,2]
[354922344,1740818957411,-500.0,0.00031975,2]
[354922345,1740818957432,-500.0,0.00031975,2]
[354922346,1740818957454,-500.0,0.00031975,2]
[354922347,1740818957477,-500.0,0.00031975,2]
[354922348,1740818957500,-500.0,0.00031975,2]
[354922349,1740818957522,-500.0,0.00031975,2]
[354922350,1740818957544,-500.0,0.00031975,2]
[354922351,1740818957824,-5665.8611823,0.00031977,2]
[354922352,1740818957847,-389.63583494,0.00032192,30]
[354922353,1740818957870,-420.07534834,0.00032486,6]
[354922354,1740818957892,-389.63583494,0.00032548,30]
[354922365,1740819032266,-494.210866,0.000327,2]
[354922366,1740819032278,-494.21086596,0.00032719,2]
[354922367,1740819032288,-494.21086596,0.00032738,2]
[354922368,1740819032303,-494.21086596,0.00032757,2]
[354922369,1740819032320,-176.35,0.00032766,3]
[354922370,1740819032332,-529.07,0.00032766,3]
[354922371,1740819032342,-400.0,0.00032772,2]
[354922372,1740819032353,-5027.52824769,0.00032773,2]
[354922373,1740819032364,-500.0,0.00032775,2]
[354922374,1740819032374,-500.0,0.00032775,2]
[354922375,1740819032383,-530.63590494,0.00032775,2]
[354922376,1740819032393,-500.0,0.00032775,2]
[354922377,1740819032402,-244.50073655,0.00032775,2]
[354922378,1740819032412,-3631.08914442,0.00032776,2]
[354922379,1740819032428,-34821.97675604,0.00032776,2]
[354922380,1740819032448,-183546.93409954,0.00032776,2]
[354922381,1740819032457,-494.21086596,0.00032776,2]
[354922382,1740819032467,-151.0,0.000328,10]
[354922383,1740819032476,-151.0,0.000328,13]
[354922389,1740819032929,-151.0,0.000328,16]
[354922390,1740819032948,-151.0,0.000328,15]
[354922391,1740819032971,-500.0,0.00032856,2]
[354922392,1740819032982,-4000.0,0.0003286,3]
[354922393,1740819032991,-4000.0,0.0003287,2]
[354922394,1740819033001,-4000.0,0.0003287,2]
[354922395,1740819033010,-4000.0,0.0003287,10]
[354922396,1740819033020,-500.0,0.00032873,5]
[354922397,1740819033030,-500.0,0.00032873,5]
[354922398,1740819033039,-164.83393142,0.00032873,2]
[354922399,1740819033049,-500.0,0.00032873,5]
[354922400,1740819033058,-160.0,0.00032873,5]
[354922401,1740819033068,-501.13031386,0.00032873,5]
[354922402,1740819033077,-501.93316386,0.00032873,2]
[354922403,1740819033087,-150.17127012,0.00032873,5]
[354922404,1740819033096,-500.0,0.00032873,5]
[354922405,1740819033106,-500.0,0.00032873,5]
[354922406,1740819033115,-500.0,0.00032873,5]
[354922407,1740819033125,-488.7824938,0.00032873,5]
[354922408,1740819033134,-500.0,0.00032873,5]
[354922409,1740819033144,-500.0,0.00032873,5]
[354922410,1740819033154,-500.0,0.00032873,5]
[354922411,1740819033163,-500.0,0.00032873,5]
[354922412,1740819033173,-500.0,0.00032873,5]
[354922413,1740819033183,-500.0,0.00032873,5]
[354922414,1740819033192,-158.5,0.00032873,2]
[354922415,1740819033202,-160.0,0.00032873,3]
[354922416,1740819033213,-500.0,0.00032873,5]
[354922417,1740819033222,-160.0,0.00032873,5]
[354922418,1740819033233,-159.0,0.00032873,5]
[354922419,1740819033243,-160.0079,0.00032873,5]
[354922420,1740819033253,-500.0,0.00032873,5]
[354922421,1740819033262,-503.70867336,0.00032873,5]
[354922422,1740819033272,-500.0,0.00032873,5]
[354922423,1740819033281,-307.98628014,0.00032873,5]
[354922424,1740819033291,-500.0,0.00032873,3]
[354922425,1740819033304,-364.39067418,0.00032873,5]
[354922426,1740819033314,-500.0,0.00032873,5]
[354922427,1740819033323,-500.0,0.00032873,5]
[354922428,1740819033333,-159.0,0.00032873,5]
[354922429,1740819033343,-500.0,0.00032873,5]
[354922430,1740819033353,-509.40318227,0.00032873,2]
[354922431,1740819033362,-500.0,0.00032873,5]
[354922432,1740819033372,-500.0,0.00032873,5]
[354922433,1740819033383,-510.31796476,0.00032873,5]
[354922434,1740819033394,-500.0,0.00032873,5]
[354922435,1740819033404,-500.0,0.00032873,5]
[354922436,1740819033413,-500.0,0.00032873,5]
[354922437,1740819033423,-151.16438826,0.00032873,5]
[354922438,1740819033433,-500.0,0.00032873,5]
[354922439,1740819033443,-500.0,0.00032873,5]
[354922440,1740819033452,-500.0,0.00032873,5]
[354922441,1740819033461,-500.0,0.00032873,5]
[354922442,1740819033471,-500.0,0.00032873,5]
[354922443,1740819033480,-500.0,0.00032873,5]
[354922444,1740819033490,-506.35827061,0.00032873,5]
[354922445,1740819033499,-4000.0,0.00032874,7]
[354922446,1740819033508,-3740.01,0.00032875,30]
[354922447,1740819033518,-500.0,0.00032876,2]
[354922448,1740819033527,-500.0,0.00032876,2]
[354922449,1740819033538,-500.0,0.00032876,2]
[354922450,1740819033548,-500.0,0.00032876,2]
[354922451,1740819033557,-500.0,0.00032876,2]
[354922452,1740819033567,-500.0,0.00032876,2]
[354922453,1740819033577,-500.0,0.00032876,2]
[354922454,1740819033587,-500.0,0.00032876,2]
[354922455,1740819033597,-510.80846564,0.00032876,2]
[354922456,1740819033607,-500.0,0.00032876,2]
[354922457,1740819033618,-500.0,0.00032876,2]
[354922458,1740819033628,-500.0,0.00032876,2]
[354922459,1740819033643,-500.0,0.00032876,2]
[354922460,1740819033654,-503.6750416,0.00032876,2]
[354922461,1740819033664,-500.0,0.00032876,2]
[354922462,1740819033674,-500.0,0.00032876,2]
[354922463,1740819033685,-500.0,0.00032876,2]
[354922464,1740819033695,-500.0,0.00032876,2]
[354922465,1740819033705,-500.0,0.00032876,2]
[354922466,1740819033716,-500.0,0.00032876,2]
[354922467,1740819033726,-500.0,0.00032876,2]
[354922468,1740819033736,-500.0,0.00032876,2]
[354922469,1740819033746,-500.0,0.00032876,2]
[354922470,1740819033756,-500.0,0.00032876,2]
[354922471,1740819033768,-506.83329024,0.00032876,2]
[354922472,1740819033777,-500.0,0.00032876,2]
[354922473,1740819033787,-500.0,0.00032876,2]
[354922474,1740819033797,-500.0,0.00032876,2]
[354922475,1740819033807,-500.0,0.00032876,2]
[354922476,1740819033817,-500.0,0.00032876,2]
[354922477,1740819033826,-500.0,0.00032876,2]
[354922478,1740819033836,-500.0,0.00032876,2]
[354922479,1740819033845,-500.0,0.00032876,2]
[354922480,1740819033855,-500.0,0.00032876,2]
[354922481,1740819033864,-500.0,0.00032876,2]
[354922482,1740819033874,-500.0,0.00032876,2]
[354922483,1740819033884,-509.13053613,0.00032876,14]
[354922484,1740819033894,-500.0,0.00032876,2]
[354922485,1740819033904,-500.0,0.00032876,2]
[354922486,1740819033914,-500.0,0.00032876,2]
[354922487,1740819033924,-500.0,0.00032876,2]
[354922488,1740819033934,-500.0,0.00032876,2]
[354922489,1740819033943,-500.0,0.00032876,2]
[354922490,1740819033953,-500.0,0.00032876,2]
[354922491,1740819033963,-500.0,0.00032876,2]
[354922492,1740819033972,-500.0,0.00032876,2]
[354922493,1740819033982,-500.0,0.00032876,2]
[354922494,1740819033991,-506.77,0.00032876,2]
[354922495,1740819034001,-505.44397405,0.00032876,2]
[354922496,1740819034010,-500.0,0.00032876,2]
[354922497,1740819034020,-957.49,0.00032876,2]
[354922498,1740819034030,-500.0,0.00032876,2]
[354922499,1740819034040,-607.54,0.00032876,2]
[354922500,1740819034049,-500.0,0.00032876,2]